[Event "UK Open Blitz Championships 2024 - London Qualifier"]
[Site "London, United Kingdom"]
[Date "2024.09.21"]
[Round "5.3"]
[White "Badacsonyi, Stanley"]
[Black "Kirk, Ezra"]
[Result "1/2-1/2"]
[TimeControl "3 minutes + 2 seconds incr. from move 1"]
[WhiteTitle "FM"]
[BlackTitle "IM"]
[WhiteFideId "486973"]
[BlackFideId "600067"]
[WhiteElo "2332"]
[BlackElo "2219"]

1. d4 {[%clk 00:03:03]} {[%emt 00:01:03]} Nf6 {[%clk 00:03:03]} {[%emt
00:00:02]} 2. Nc3 {[%clk 00:03:04]} d5 {[%clk 00:03:00]} {[%emt 00:00:05]} 3.
Bf4 {[%clk 00:03:05]} a6 {[%clk 00:02:57]} {[%emt 00:00:05]} 4. e3 {[%clk
00:03:06]} {[%emt 00:00:01]} e6 {[%clk 00:02:57]} {[%emt 00:00:02]} 5. Bd3
{[%clk 00:03:07]} {[%emt 00:00:02]} c5 {[%clk 00:02:57]} {[%emt 00:00:01]} 6.
dxc5 {[%clk 00:03:08]} {[%emt 00:00:01]} Nbd7 {[%clk 00:02:52]} {[%emt
00:00:08]} 7. Nf3 {[%clk 00:02:52]} {[%emt 00:00:17]} Nxc5 {[%clk 00:02:51]}
{[%emt 00:00:03]} 8. O-O {[%clk 00:02:52]} {[%emt 00:00:02]} Nxd3 {[%clk
00:02:40]} {[%emt 00:00:13]} 9. cxd3 {[%clk 00:02:40]} {[%emt 00:00:14]} Be7
{[%clk 00:02:39]} {[%emt 00:00:04]} 10. d4 {[%clk 00:02:41]} {[%emt 00:00:01]}
O-O {[%clk 00:02:32]} {[%emt 00:00:09]} 11. Rc1 {[%clk 00:02:42]} Nh5 {[%clk
00:02:19]} {[%emt 00:00:14]} 12. Be5 {[%clk 00:02:37]} {[%emt 00:00:08]} f6
{[%clk 00:02:16]} {[%emt 00:00:05]} 13. Ne1 {[%clk 00:02:28]} {[%emt 00:00:11]}
g6 {[%clk 00:02:14]} {[%emt 00:00:04]} 14. Bg3 {[%clk 00:02:29]} {[%emt
00:00:01]} Bd7 {[%clk 00:02:05]} {[%emt 00:00:12]} 15. Nd3 {[%clk 00:02:27]}
{[%emt 00:00:04]} Rc8 {[%clk 00:02:04]} {[%emt 00:00:03]} 16. Qb3 {[%clk
00:02:14]} {[%emt 00:00:15]} b5 {[%clk 00:01:51]} {[%emt 00:00:15]} 17. a4
{[%clk 00:02:08]} {[%emt 00:00:08]} b4 {[%clk 00:01:47]} {[%emt 00:00:05]} 18.
Ne2 {[%clk 00:01:47]} {[%emt 00:00:23]} Nxg3 {[%clk 00:01:43]} {[%emt
00:00:06]} 19. hxg3 {[%clk 00:01:47]} {[%emt 00:00:01]} Qa5 {[%clk 00:01:35]}
{[%emt 00:00:10]} 20. Rxc8 {[%clk 00:01:28]} {[%emt 00:00:21]} Rxc8 {[%clk
00:01:36]} {[%emt 00:00:01]} 21. Ra1 {[%clk 00:01:29]} {[%emt 00:00:01]} g5
{[%clk 00:01:30]} {[%emt 00:00:07]} 22. Qd1 {[%clk 00:01:28]} {[%emt 00:00:04]}
Rc6 {[%clk 00:01:03]} {[%emt 00:00:29]} 23. b3 {[%clk 00:01:28]} {[%emt
00:00:02]} Qc7 {[%clk 00:01:02]} {[%emt 00:00:02]} 24. Rc1 {[%clk 00:01:29]}
{[%emt 00:00:01]} a5 {[%clk 00:00:52]} {[%emt 00:00:13]} 25. Rxc6 {[%clk
00:01:11]} {[%emt 00:00:20]} Qxc6 {[%clk 00:00:53]} 26. Qc1 {[%clk 00:01:12]}
{[%emt 00:00:01]} Qxc1+ {[%clk 00:00:53]} {[%emt 00:00:02]} 27. Nexc1 {[%clk
00:01:13]} Kf7 {[%clk 00:00:46]} {[%emt 00:00:09]} 28. f3 {[%clk 00:01:14]} Bd6
{[%clk 00:00:44]} {[%emt 00:00:04]} 29. Kf2 {[%clk 00:01:15]} e5 {[%clk
00:00:44]} {[%emt 00:00:03]} 30. dxe5 {[%clk 00:01:10]} {[%emt 00:00:06]} fxe5
{[%clk 00:00:43]} {[%emt 00:00:03]} 31. f4 {[%clk 00:01:02]} {[%emt 00:00:10]}
gxf4 {[%clk 00:00:29]} {[%emt 00:00:16]} 32. gxf4 {[%clk 00:01:03]} {[%emt
00:00:01]} exf4 {[%clk 00:00:29]} {[%emt 00:00:02]} 33. exf4 {[%clk 00:01:02]}
{[%emt 00:00:03]} Bf5 {[%clk 00:00:29]} {[%emt 00:00:02]} 34. Ke3 {[%clk
00:01:04]} h5 {[%clk 00:00:14]} {[%emt 00:00:17]} 35. Kd4 {[%clk 00:01:04]}
{[%emt 00:00:02]} Ke6 {[%clk 00:00:12]} {[%emt 00:00:03]} 36. g3 {[%clk
00:00:58]} {[%emt 00:00:08]} Bc7 {[%clk 00:00:07]} {[%emt 00:00:07]} 37. Kc5
{[%clk 00:00:54]} {[%emt 00:00:06]} Bd8 {[%clk 00:00:06]} {[%emt 00:00:02]} 38.
Kc6 {[%clk 00:00:48]} {[%emt 00:00:09]} Be4 {[%clk 00:00:06]} {[%emt 00:00:03]}
39. Nc5 {[%clk 00:00:38]} {[%emt 00:00:12]} Kf5 {[%clk 00:00:06]} {[%emt
00:00:01]} 40. Kd7 {[%clk 00:00:26]} {[%emt 00:00:14]} Bb6 {[%clk 00:00:05]}
{[%emt 00:00:03]} 41. Ne6 {[%clk 00:00:17]} {[%emt 00:00:10]} Bf2 {[%clk
00:00:05]} {[%emt 00:00:01]} 42. Ne2 {[%clk 00:00:17]} {[%emt 00:00:03]} Bd3
{[%clk 00:00:05]} {[%emt 00:00:02]} 43. N2d4+ {[%clk 00:00:16]} {[%emt
00:00:04]} Kg4 {[%clk 00:00:05]} {[%emt 00:00:02]} 44. Kd6 {[%clk 00:00:13]}
{[%emt 00:00:05]} Kxg3 {[%clk 00:00:06]} {[%emt 00:00:02]} 45. f5 {[%clk
00:00:14]} Bxd4 {[%clk 00:00:05]} {[%emt 00:00:03]} 46. Nxd4 {[%clk 00:00:15]}
{[%emt 00:00:01]} h4 {[%clk 00:00:06]} 47. f6 {[%clk 00:00:17]} Bg6 {[%clk
00:00:07]} 48. Nf5+ {[%clk 00:00:18]} Kg4 {[%clk 00:00:08]} {[%emt 00:00:01]}
49. Nxh4 {[%clk 00:00:17]} {[%emt 00:00:03]} Kxh4 {[%clk 00:00:09]} 50. Kxd5
{[%clk 00:00:19]} Kg5 {[%clk 00:00:10]} {[%emt 00:00:02]} 51. Kc5 {[%clk
00:00:17]} {[%emt 00:00:04]} Bf7 {[%clk 00:00:08]} {[%emt 00:00:04]} 52. Kb6
{[%clk 00:00:19]} Kxf6 {[%clk 00:00:09]} {[%emt 00:00:01]} 53. Kxa5 {[%clk
00:00:20]} 1/2-1/2

[Event "UK Open Blitz Championships 2024 - London Qualifier"]
[Site "London, United Kingdom"]
[Date "2024.09.21"]
[Round "5.4"]
[White "Turner, Max N"]
[Black "Gasanov, Eldar"]
[Result "1/2-1/2"]
[TimeControl "3 minutes + 2 seconds incr. from move 1"]
[WhiteTitle "CM"]
[BlackTitle "GM"]
[WhiteFideId "447722"]
[BlackFideId "14104466"]
[WhiteElo "2157"]
[BlackElo "2467"]

1. d4 {[%clk 00:03:02]} {[%emt 00:00:02]} d6 {[%clk 00:03:01]} {[%emt
00:00:03]} 2. Nf3 {[%clk 00:03:03]} Bg4 {[%clk 00:03:02]} {[%emt 00:00:01]} 3.
e4 {[%clk 00:03:03]} {[%emt 00:00:03]} Nf6 {[%clk 00:02:59]} {[%emt 00:00:05]}
4. Nc3 {[%clk 00:03:04]} {[%emt 00:00:01]} e6 {[%clk 00:02:53]} {[%emt
00:00:08]} 5. h3 {[%clk 00:03:05]} {[%emt 00:00:01]} Bh5 {[%clk 00:02:54]} 6.
Be2 {[%clk 00:03:06]} {[%emt 00:00:01]} Be7 {[%clk 00:02:43]} {[%emt 00:00:12]}
7. O-O {[%clk 00:03:06]} {[%emt 00:00:02]} O-O {[%clk 00:02:43]} {[%emt
00:00:01]} 8. Be3 {[%clk 00:03:07]} {[%emt 00:00:02]} d5 {[%clk 00:02:43]}
{[%emt 00:00:03]} 9. e5 {[%clk 00:03:05]} {[%emt 00:00:04]} Nfd7 {[%clk
00:02:43]} {[%emt 00:00:02]} 10. Nd2 {[%clk 00:02:59]} {[%emt 00:00:08]} Bg6
{[%clk 00:02:43]} {[%emt 00:00:02]} 11. f4 {[%clk 00:02:44]} {[%emt 00:00:16]}
c5 {[%clk 00:02:38]} {[%emt 00:00:07]} 12. f5 {[%clk 00:02:37]} {[%emt
00:00:09]} Bxf5 {[%clk 00:02:23]} {[%emt 00:00:18]} 13. Nxd5 {[%clk 00:02:38]}
{[%emt 00:00:02]} cxd4 {[%clk 00:02:23]} {[%emt 00:00:02]} 14. Bxd4 {[%clk
00:02:30]} {[%emt 00:00:10]} Nc6 {[%clk 00:02:18]} {[%emt 00:00:07]} 15. Nxe7+
{[%clk 00:02:02]} {[%emt 00:00:30]} Qxe7 {[%clk 00:02:19]} {[%emt 00:00:01]} 16.
Nc4 {[%clk 00:02:03]} Bxc2 {[%clk 00:02:12]} {[%emt 00:00:09]} 17. Qd2 {[%clk
00:01:54]} {[%emt 00:00:10]} Nxd4 {[%clk 00:02:05]} {[%emt 00:00:09]} 18. Qxd4
{[%clk 00:01:55]} {[%emt 00:00:01]} Qc5 {[%clk 00:01:44]} {[%emt 00:00:23]} 19.
Qxc5 {[%clk 00:01:56]} {[%emt 00:00:02]} Nxc5 {[%clk 00:01:45]} {[%emt
00:00:01]} 20. Nd6 {[%clk 00:01:56]} {[%emt 00:00:02]} b6 {[%clk 00:01:26]}
{[%emt 00:00:21]} 21. b4 {[%clk 00:01:57]} Nd3 {[%clk 00:01:14]} {[%emt
00:00:13]} 22. Bxd3 {[%clk 00:01:48]} {[%emt 00:00:11]} Bxd3 {[%clk 00:01:15]}
23. Rfd1 {[%clk 00:01:40]} {[%emt 00:00:10]} Bg6 {[%clk 00:01:15]} {[%emt
00:00:02]} 24. Rac1 {[%clk 00:01:33]} {[%emt 00:00:09]} Rad8 {[%clk 00:01:16]}
25. Rc7 {[%clk 00:01:28]} {[%emt 00:00:07]} f6 {[%clk 00:01:17]} 26. exf6
{[%clk 00:01:19]} {[%emt 00:00:11]} Rxf6 {[%clk 00:01:17]} {[%emt 00:00:02]} 27.
Rc8 {[%clk 00:00:58]} {[%emt 00:00:23]} Rff8 {[%clk 00:01:14]} {[%emt
00:00:05]} 28. Rc7 {[%clk 00:00:45]} {[%emt 00:00:15]} Rf7 {[%clk 00:01:04]}
{[%emt 00:00:12]} 29. Nxf7 {[%clk 00:00:13]} {[%emt 00:00:34]} Rxd1+ {[%clk
00:01:01]} {[%emt 00:00:05]} 30. Kh2 {[%clk 00:00:12]} {[%emt 00:00:04]} Bxf7
{[%clk 00:00:53]} {[%emt 00:00:09]} 31. Rc8+ {[%clk 00:00:13]} Be8 {[%clk
00:00:55]} 32. Rxe8+ {[%clk 00:00:14]} {[%emt 00:00:02]} Kf7 {[%clk 00:00:57]}
33. Ra8 {[%clk 00:00:10]} {[%emt 00:00:06]} Rd7 {[%clk 00:00:56]} {[%emt
00:00:03]} 34. Kg3 {[%clk 00:00:11]} Rd3+ {[%clk 00:00:49]} {[%emt 00:00:09]}
35. Kf4 {[%clk 00:00:08]} {[%emt 00:00:06]} Ra3 {[%clk 00:00:46]} {[%emt
00:00:04]} 36. Rh8 {[%clk 00:00:03]} {[%emt 00:00:07]} Rxa2 {[%clk 00:00:38]}
{[%emt 00:00:10]} 37. g4 {[%clk 00:00:04]} {[%emt 00:00:02]} Ra4 {[%clk
00:00:36]} {[%emt 00:00:03]} 38. Ke5 {[%clk 00:00:05]} {[%emt 00:00:01]} Rxb4
{[%clk 00:00:36]} {[%emt 00:00:03]} 39. Rb8 {[%clk 00:00:05]} Rb5+ {[%clk
00:00:36]} {[%emt 00:00:01]} 40. Kd6 {[%clk 00:00:07]} Rd5+ {[%clk 00:00:36]}
{[%emt 00:00:01]} 41. Kc6 {[%clk 00:00:08]} {[%emt 00:00:01]} Kf6 {[%clk
00:00:28]} {[%emt 00:00:10]} 42. Rb7 {[%clk 00:00:09]} {[%emt 00:00:02]} Rc5+
{[%clk 00:00:28]} {[%emt 00:00:01]} 43. Kd6 {[%clk 00:00:10]} Ra5 {[%clk
00:00:28]} {[%emt 00:00:02]} 44. Rb8 {[%clk 00:00:06]} {[%emt 00:00:06]} Rd5+
{[%clk 00:00:27]} {[%emt 00:00:03]} 45. Kc6 {[%clk 00:00:08]} Rd3 {[%clk
00:00:28]} 46. Rf8 {[%clk 00:00:06]} {[%emt 00:00:05]} Ke7 {[%clk 00:00:27]}
{[%emt 00:00:02]} 47. Rg8 {[%clk 00:00:07]} {[%emt 00:00:02]} Kf7 {[%clk
00:00:27]} {[%emt 00:00:02]} 48. Ra8 {[%clk 00:00:08]} {[%emt 00:00:01]} Rxh3
{[%clk 00:00:21]} {[%emt 00:00:08]} 49. Rxa7+ {[%clk 00:00:08]} {[%emt
00:00:02]} Kf6 {[%clk 00:00:22]} 50. Kxb6 {[%clk 00:00:04]} {[%emt 00:00:06]}
Rg3 {[%clk 00:00:22]} {[%emt 00:00:02]} 51. Ra4 {[%clk 00:00:04]} {[%emt
00:00:02]} Kg5 {[%clk 00:00:23]} {[%emt 00:00:02]} 52. Ra7 {[%clk 00:00:05]}
Kh6 {[%clk 00:00:23]} {[%emt 00:00:02]} 53. Kc6 {[%clk 00:00:04]} {[%emt
00:00:04]} Rxg4 {[%clk 00:00:23]} {[%emt 00:00:02]} 54. Kd6 {[%clk 00:00:05]}
Re4 {[%clk 00:00:24]} 55. Ra5 {[%clk 00:00:04]} {[%emt 00:00:04]} Kg6 {[%clk
00:00:24]} {[%emt 00:00:03]} 56. Ra1 {[%clk 00:00:03]} {[%emt 00:00:02]} h5
{[%clk 00:00:24]} {[%emt 00:00:03]} 57. Rg1 {[%clk 00:00:05]} Kf6 {[%clk
00:00:23]} {[%emt 00:00:02]} 58. Rf1 {[%clk 00:00:06]} {[%emt 00:00:01]} Kg5
{[%clk 00:00:24]} {[%emt 00:00:01]} 59. Rg1+ {[%clk 00:00:08]} Rg4 {[%clk
00:00:26]} 60. Re1 {[%clk 00:00:09]} h4 {[%clk 00:00:22]} {[%emt 00:00:06]} 61.
Kxe6 {[%clk 00:00:09]} {[%emt 00:00:02]} h3 {[%clk 00:00:23]} {[%emt 00:00:01]}
62. Re5+ {[%clk 00:00:04]} {[%emt 00:00:06]} Kh4 {[%clk 00:00:23]} {[%emt
00:00:02]} 63. Re2 {[%clk 00:00:03]} {[%emt 00:00:04]} Kg3 {[%clk 00:00:22]}
{[%emt 00:00:03]} 64. Kf5 {[%clk 00:00:04]} {[%emt 00:00:01]} Ra4 {[%clk
00:00:17]} {[%emt 00:00:06]} 65. Re3+ {[%clk 00:00:04]} {[%emt 00:00:03]} Kg2
{[%clk 00:00:18]} 66. Re2+ {[%clk 00:00:05]} {[%emt 00:00:02]} Kf3 {[%emt
00:00:03]} 67. Rb2 {[%clk 00:00:04]} Ra5+ {[%clk 00:00:21]} 68. Kg6 {[%clk
00:00:05]} Ra7 {[%clk 00:00:15]} {[%emt 00:00:08]} 69. Rb3+ {[%clk 00:00:06]}
{[%emt 00:00:01]} Kg2 {[%clk 00:00:16]} 70. Rb2+ {[%clk 00:00:08]} Kg1 {[%clk
00:00:16]} {[%emt 00:00:01]} 71. Rb1+ {[%clk 00:00:09]} {[%emt 00:00:01]} Kf2
{[%clk 00:00:17]} 72. Rb2+ {[%clk 00:00:10]} Kg3 {[%clk 00:00:17]} 73. Rb3+
{[%clk 00:00:12]} {[%emt 00:00:01]} Kg2 {[%clk 00:00:18]} {[%emt 00:00:01]} 74.
Rb2+ {[%clk 00:00:14]} Kf3 {[%clk 00:00:19]} {[%emt 00:00:01]} 75. Rb3+ {[%clk
00:00:15]} Kg2 {[%clk 00:00:20]} 76. Rb2+ {[%clk 00:00:16]} Kg1 {[%clk
00:00:22]} 77. Rb1+ {[%clk 00:00:18]} Kf2 {[%clk 00:00:23]} 78. Rb2+ {[%clk
00:00:19]} Kf1 {[%clk 00:00:22]} {[%emt 00:00:03]} 79. Rb1+ {[%clk 00:00:21]}
Ke2 {[%clk 00:00:21]} {[%emt 00:00:03]} 80. Rb2+ {[%clk 00:00:22]} {[%emt
00:00:01]} Ke1 {[%clk 00:00:20]} {[%emt 00:00:03]} 81. Rb1+ {[%clk 00:00:23]}
Kf2 {[%clk 00:00:22]} 82. Rb2+ {[%clk 00:00:25]} Kg3 {[%clk 00:00:17]} {[%emt
00:00:06]} 83. Rb3+ {[%clk 00:00:26]} Kg4 {[%clk 00:00:17]} {[%emt 00:00:01]}
84. Rb4+ {[%clk 00:00:27]} {[%emt 00:00:01]} Kf3 {[%clk 00:00:19]} {[%emt
00:00:01]} 85. Rb3+ {[%clk 00:00:29]} Kg2 {[%clk 00:00:20]} 86. Rb2+ {[%clk
00:00:30]} Kf1 {[%clk 00:00:22]} 87. Rb1+ {[%clk 00:00:31]} Ke2 {[%clk
00:00:23]} 88. Rb2+ {[%clk 00:00:33]} Ke1 {[%clk 00:00:24]} 89. Rb1+ {[%clk
00:00:34]} Kd2 {[%clk 00:00:26]} 90. Rb2+ {[%clk 00:00:35]} Kd1 {[%clk
00:00:24]} {[%emt 00:00:04]} 91. Rh2 {[%clk 00:00:30]} {[%emt 00:00:07]} Ra3
{[%emt 00:00:02]} 92. Kg5 {[%clk 00:00:30]} Ke1 {[%clk 00:00:21]} {[%emt
00:00:05]} 93. Kg4 {[%clk 00:00:32]} {[%emt 00:00:01]} Kf1 {[%clk 00:00:17]}
{[%emt 00:00:06]} 94. Rxh3 {[%clk 00:00:33]} {[%emt 00:00:01]} Ra5 {[%clk
00:00:13]} {[%emt 00:00:04]} 95. Rh5 {[%clk 00:00:33]} {[%emt 00:00:04]} Ra6
{[%clk 00:00:12]} {[%emt 00:00:02]} 96. Rh7 {[%clk 00:00:32]} {[%emt 00:00:03]}
Rg6+ {[%clk 00:00:12]} {[%emt 00:00:03]} 97. Kf5 {[%clk 00:00:32]} {[%emt
00:00:02]} Rg2 {[%clk 00:00:13]} 98. Rh4 {[%clk 00:00:30]} {[%emt 00:00:04]}
Kf2 {[%clk 00:00:09]} {[%emt 00:00:06]} 99. Rg4 {[%clk 00:00:30]} {[%emt
00:00:03]} Rg3 {[%clk 00:00:08]} {[%emt 00:00:03]} 100. Rxg3 {[%clk 00:00:31]}
{[%emt 00:00:01]} Kxg3 {[%clk 00:00:08]} {[%emt 00:00:02]} 101. Kg6 {[%clk
00:00:31]} {[%emt 00:00:02]} Kf4 {[%clk 00:00:09]} 102. Kxg7 {[%clk 00:00:32]}
Ke5 {[%clk 00:00:11]} 1/2-1/2

[Event "UK Open Blitz Championships 2024 - London Qualifier"]
[Site "London, United Kingdom"]
[Date "2024.09.21"]
[Round "5.5"]
[White "Mirzoeva, Elmira"]
[Black "Dong, Bao Nghia"]
[Result "0-1"]
[TimeControl "3 minutes + 2 seconds incr. from move 1"]
[WhiteTitle "WGM"]
[BlackTitle "FM"]
[WhiteFideId "4127951"]
[BlackFideId "12400343"]
[WhiteElo "2094"]
[BlackElo "2306"]

1. d4 {[%clk 00:03:03]} Nf6 {[%clk 00:03:03]} {[%emt 00:00:01]} 2. c4 {[%clk
00:03:03]} {[%emt 00:00:02]} c5 {[%clk 00:03:04]} 3. d5 {[%clk 00:03:04]}
{[%emt 00:00:02]} b5 {[%clk 00:03:04]} 4. cxb5 {[%clk 00:02:54]} {[%emt
00:00:12]} a6 {[%clk 00:03:05]} 5. b6 {[%clk 00:02:50]} {[%emt 00:00:06]} d6
{[%clk 00:03:06]} 6. Nc3 {[%clk 00:02:51]} {[%emt 00:00:02]} Nbd7 {[%clk
00:03:06]} {[%emt 00:00:01]} 7. e4 {[%clk 00:02:50]} {[%emt 00:00:03]} g6
{[%clk 00:03:07]} {[%emt 00:00:01]} 8. Nf3 {[%clk 00:02:49]} {[%emt 00:00:03]}
Bg7 {[%clk 00:03:08]} 9. a4 {[%clk 00:02:48]} {[%emt 00:00:04]} Qxb6 {[%clk
00:03:08]} {[%emt 00:00:02]} 10. Be2 {[%clk 00:02:47]} {[%emt 00:00:03]} O-O
{[%clk 00:03:06]} {[%emt 00:00:03]} 11. O-O {[%clk 00:02:47]} {[%emt 00:00:02]}
Rb8 {[%clk 00:03:04]} {[%emt 00:00:04]} 12. a5 {[%clk 00:02:41]} {[%emt
00:00:08]} Qa7 {[%clk 00:03:05]} 13. Nd2 {[%clk 00:02:34]} {[%emt 00:00:10]}
Ne5 {[%clk 00:02:23]} {[%emt 00:00:44]} 14. h3 {[%clk 00:02:29]} {[%emt
00:00:07]} g5 {[%clk 00:02:15]} {[%emt 00:00:10]} 15. Nc4 {[%clk 00:02:15]}
{[%emt 00:00:16]} Nxc4 {[%clk 00:02:14]} {[%emt 00:00:04]} 16. Bxc4 {[%clk
00:02:16]} {[%emt 00:00:01]} Rb4 {[%clk 00:02:08]} {[%emt 00:00:07]} 17. Qe2
{[%clk 00:02:16]} {[%emt 00:00:02]} g4 {[%clk 00:01:44]} {[%emt 00:00:27]} 18.
hxg4 {[%clk 00:01:52]} {[%emt 00:00:26]} Nxg4 {[%clk 00:01:44]} {[%emt
00:00:02]} 19. Ra4 {[%clk 00:01:28]} {[%emt 00:00:26]} Bxc3 {[%clk 00:01:36]}
{[%emt 00:00:10]} 20. Rxb4 {[%clk 00:01:17]} {[%emt 00:00:13]} Bxb4 {[%clk
00:01:37]} {[%emt 00:00:01]} 21. f3 {[%clk 00:01:18]} {[%emt 00:00:02]} Ne5
{[%clk 00:01:37]} {[%emt 00:00:02]} 22. Bh6 {[%clk 00:01:17]} {[%emt 00:00:02]}
Nxc4 {[%clk 00:01:19]} {[%emt 00:00:19]} 23. Bxf8 {[%clk 00:00:42]} {[%emt
00:00:38]} Kxf8 {[%clk 00:01:20]} {[%emt 00:00:01]} 24. Qxc4 {[%clk 00:00:41]}
{[%emt 00:00:03]} Bd7 {[%clk 00:01:17]} {[%emt 00:00:04]} 25. Qc1 {[%clk
00:00:38]} {[%emt 00:00:05]} c4+ {[%clk 00:01:08]} {[%emt 00:00:11]} 26. Kh1
{[%clk 00:00:38]} {[%emt 00:00:03]} Qd4 {[%clk 00:00:58]} {[%emt 00:00:12]} 27.
Rd1 {[%clk 00:00:15]} {[%emt 00:00:25]} Qf6 {[%clk 00:00:59]} 28. Qxc4 {[%clk
00:00:05]} {[%emt 00:00:12]} Qh4+ {[%clk 00:01:00]} 29. Kg1 {[%clk 00:00:07]}
Bc5+ {[%clk 00:01:02]} 0-1

[Event "UK Open Blitz Championships 2024 - London Qualifier"]
[Site "London, United Kingdom"]
[Date "2024.09.21"]
[Round "6.1"]
[White "Roberson, Peter T"]
[Black "Turner, Max N"]
[Result "0-1"]
[TimeControl "3 minutes + 2 seconds incr. from move 1"]
[WhiteTitle "IM"]
[BlackTitle "CM"]
[WhiteFideId "412384"]
[BlackFideId "447722"]
[WhiteElo "2346"]
[BlackElo "2157"]

1. e4 {[%clk 00:03:03]} c6 {[%clk 00:03:04]} {[%emt 00:00:01]} 2. d4 {[%clk
00:03:04]} d5 {[%clk 00:03:05]} 3. e5 {[%clk 00:03:05]} Bf5 {[%clk 00:03:06]} 4.
Nd2 {[%clk 00:03:06]} {[%emt 00:00:01]} e6 {[%clk 00:03:01]} {[%emt 00:00:08]}
5. Nb3 {[%clk 00:03:07]} Nd7 {[%clk 00:02:58]} {[%emt 00:00:05]} 6. Nf3 {[%clk
00:03:08]} {[%emt 00:00:01]} h6 {[%clk 00:02:53]} {[%emt 00:00:07]} 7. Be2
{[%clk 00:03:07]} {[%emt 00:00:02]} Ne7 {[%clk 00:02:51]} {[%emt 00:00:04]} 8.
O-O {[%clk 00:03:08]} {[%emt 00:00:02]} Bh7 {[%clk 00:02:51]} {[%emt 00:00:01]}
9. a4 {[%clk 00:03:08]} {[%emt 00:00:02]} a5 {[%clk 00:02:52]} 10. Bd2 {[%clk
00:02:59]} {[%emt 00:00:11]} Nf5 {[%clk 00:02:47]} {[%emt 00:00:08]} 11. c4
{[%clk 00:02:55]} {[%emt 00:00:06]} Be7 {[%clk 00:02:34]} {[%emt 00:00:15]} 12.
Rc1 {[%clk 00:02:50]} {[%emt 00:00:07]} dxc4 {[%clk 00:02:30]} {[%emt
00:00:06]} 13. Bxc4 {[%clk 00:02:46]} {[%emt 00:00:05]} O-O {[%clk 00:02:21]}
{[%emt 00:00:12]} 14. Qe1 {[%clk 00:02:37]} {[%emt 00:00:12]} b6 {[%clk
00:02:22]} 15. Bd3 {[%clk 00:02:33]} {[%emt 00:00:05]} c5 {[%clk 00:02:07]}
{[%emt 00:00:17]} 16. Qe4 {[%clk 00:02:11]} {[%emt 00:00:23]} Bg6 {[%clk
00:02:08]} 17. Qe2 {[%clk 00:02:03]} {[%emt 00:00:10]} cxd4 {[%clk 00:02:05]}
{[%emt 00:00:05]} 18. g4 {[%clk 00:01:47]} {[%emt 00:00:18]} Nh4 {[%clk
00:02:00]} {[%emt 00:00:07]} 19. Bxg6 {[%clk 00:01:37]} {[%emt 00:00:12]} Nxg6
{[%clk 00:01:54]} {[%emt 00:00:09]} 20. Nbxd4 {[%clk 00:01:35]} {[%emt
00:00:04]} Bc5 {[%clk 00:01:48]} {[%emt 00:00:07]} 21. Qe4 {[%clk 00:01:17]}
{[%emt 00:00:19]} Bxd4 {[%clk 00:01:37]} {[%emt 00:00:14]} 22. Qxd4 {[%clk
00:01:14]} {[%emt 00:00:05]} Nc5 {[%clk 00:01:38]} {[%emt 00:00:01]} 23. Be3
{[%clk 00:01:03]} {[%emt 00:00:14]} Rc8 {[%clk 00:01:01]} {[%emt 00:00:38]} 24.
Rfd1 {[%clk 00:00:57]} {[%emt 00:00:07]} Nh4 {[%clk 00:00:47]} {[%emt
00:00:17]} 25. Qf4 {[%clk 00:00:35]} {[%emt 00:00:24]} Nxf3+ {[%clk 00:00:37]}
{[%emt 00:00:12]} 26. Qxf3 {[%clk 00:00:36]} Qe7 {[%clk 00:00:34]} {[%emt
00:00:05]} 27. Rd6 {[%clk 00:00:21]} {[%emt 00:00:17]} Nxa4 {[%clk 00:00:33]}
{[%emt 00:00:03]} 28. b3 {[%clk 00:00:22]} Rxc1+ {[%clk 00:00:30]} {[%emt
00:00:05]} 29. Bxc1 {[%clk 00:00:23]} {[%emt 00:00:01]} Nc5 {[%clk 00:00:32]}
30. Rxb6 {[%clk 00:00:23]} {[%emt 00:00:02]} Qc7 {[%clk 00:00:27]} {[%emt
00:00:06]} 31. Rc6 {[%clk 00:00:22]} {[%emt 00:00:04]} Qxe5 {[%clk 00:00:28]}
{[%emt 00:00:01]} 32. Ba3 {[%clk 00:00:20]} {[%emt 00:00:05]} Qa1+ {[%clk
00:00:17]} {[%emt 00:00:12]} 33. Kg2 {[%clk 00:00:19]} {[%emt 00:00:03]} Qxa3
{[%clk 00:00:18]} {[%emt 00:00:02]} 34. Qe3 {[%clk 00:00:17]} {[%emt 00:00:03]}
Nxb3 {[%clk 00:00:12]} {[%emt 00:00:09]} 35. g5 {[%clk 00:00:16]} {[%emt
00:00:02]} hxg5 {[%clk 00:00:10]} {[%emt 00:00:04]} 36. Rc3 {[%clk 00:00:17]}
{[%emt 00:00:01]} a4 {[%clk 00:00:11]} {[%emt 00:00:01]} 37. Qxg5 {[%clk
00:00:18]} Qb2 {[%clk 00:00:08]} {[%emt 00:00:05]} 38. Rh3 {[%clk 00:00:15]}
{[%emt 00:00:04]} Qf6 {[%clk 00:00:05]} {[%emt 00:00:05]} 39. Qb5 {[%clk
00:00:15]} {[%emt 00:00:02]} Qg6+ {[%clk 00:00:07]} 40. Rg3 {[%clk 00:00:16]}
Qe4+ {[%clk 00:00:08]} 41. Kg1 {[%clk 00:00:13]} {[%emt 00:00:05]} Rd8 {[%clk
00:00:07]} {[%emt 00:00:04]} 42. f3 {[%clk 00:00:04]} {[%emt 00:00:11]} Rd1+
{[%clk 00:00:07]} {[%emt 00:00:02]} 43. Kg2 {[%clk 00:00:05]} Rd2+ {[%clk
00:00:06]} {[%emt 00:00:03]} 44. Kh3 {[%clk 00:00:06]} Qf5+ {[%clk 00:00:07]}
{[%emt 00:00:01]} 45. Qxf5 {[%clk 00:00:06]} {[%emt 00:00:01]} exf5 {[%clk
00:00:09]} 46. f4 {[%clk 00:00:05]} {[%emt 00:00:04]} Rd4 {[%clk 00:00:07]}
{[%emt 00:00:04]} 47. Kh4 {[%clk 00:00:04]} {[%emt 00:00:03]} Rxf4+ {[%clk
00:00:08]} {[%emt 00:00:02]} 48. Kh5 {[%clk 00:00:05]} g6+ {[%clk 00:00:06]}
{[%emt 00:00:03]} 49. Kg5 {[%clk 00:00:06]} Rg4+ {[%clk 00:00:08]} {[%emt
00:00:01]} 0-1